fUST/lending_fUST_20240907
["ID","MTS","AMOUNT","RATE_DAILY","PERIOD"]
[337480556,1725689443200,-500.0,0.00047397,120]
[337480557,1725689443209,-500.0,0.00047397,120]
[337480558,1725689443219,-500.0,0.00047397,120]
[337480559,1725689443228,-777.69956453,0.00047397,120]
[337480560,1725689443238,-500.0,0.00047397,120]
[337480561,1725689443247,-500.0,0.00047397,120]
[337480562,1725689443255,-500.0,0.00047397,120]
[337480563,1725689443264,-500.0,0.00047397,120]
[337480564,1725689443274,-500.0,0.00047397,120]
[337480565,1725689443284,-500.0,0.00047397,120]
[337480566,1725689443293,-504.51577219,0.00047397,120]
[337480567,1725689443302,-500.0,0.00047397,120]
[337480568,1725689443311,-882.991904,0.00047397,120]
[337480569,1725689443322,-882.991904,0.00047397,120]
[337480570,1725689443331,-500.0,0.00047397,120]
[337480571,1725689443340,-811.795668,0.00047397,120]
[337480572,1725689443349,-811.795668,0.00047397,120]
[337480573,1725689443359,-500.0,0.00047397,120]
[337480574,1725689443368,-151.0,0.00047397,120]
[337480575,1725689443377,-505.98359763,0.00047397,120]
[337480576,1725689443387,-506.73705637,0.00047397,120]
[337480577,1725689443396,-151.0,0.00047397,120]
[337480578,1725689443406,-500.0,0.00047397,120]
[337480579,1725689443417,-500.0,0.00047397,120]
[337480580,1725689443426,-500.0,0.00047397,120]
[337480581,1725689443436,-500.0,0.00047397,120]
[337480582,1725689443445,-500.0,0.00047397,120]
[337480583,1725689443456,-1764.93,0.00047397,120]
[337480584,1725689443465,-506.17168654,0.00047397,120]
[337480585,1725689443474,-500.0,0.00047397,120]
[337480586,1725689443484,-500.0,0.00047397,120]
[337480587,1725689443493,-500.0,0.00047397,120]
[337480588,1725689443503,-500.0,0.00047397,120]
[337480589,1725689443512,-500.0,0.00047397,120]
[337480590,1725689443521,-500.0,0.00047397,120]
[337480591,1725689443536,-500.0,0.00047397,21]
[337480592,1725689443551,-394.255895,0.00047397,120]
[337480593,1725689443562,-500.0,0.00047397,120]
[337480594,1725689443571,-500.0,0.00047397,120]
[337480596,1725689443581,-394.255895,0.00047397,120]
[337480598,1725689443590,-500.0,0.00047397,120]
[337480600,1725689443602,-500.0,0.00047397,120]
[337480601,1725689443611,-755.91,0.00047397,120]
[337480603,1725689443621,-500.0,0.00047397,120]
[337480605,1725689443632,-500.0,0.00047397,120]
[337480607,1725689443641,-595.4855876,0.00047397,2]
[337480609,1725689443651,-500.0,0.00047397,120]
[337480611,1725689443661,-500.0,0.00047397,120]
[337480612,1725689443672,-500.0,0.00047397,120]
[337480613,1725689443681,-500.0,0.00047397,120]
[337480614,1725689443690,-4216.59,0.00047397,120]
[337480615,1725689443699,-500.0,0.00047397,120]
[337480616,1725689443708,-500.0,0.00047397,120]
[337480617,1725689443718,-498.27342895,0.00047397,120]
[337480618,1725689443727,-500.0,0.00047397,120]
[337480619,1725689443736,-504.53308866,0.00047397,120]
[337480620,1725689443745,-500.0,0.00047397,120]
[337480621,1725689443754,-517.89,0.00047397,120]
[337480622,1725689443764,-500.0,0.00047397,120]
[337480623,1725689443773,-500.0,0.00047397,120]
[337480624,1725689443786,-886.924956,0.00047397,120]
[337480625,1725689443795,-500.0,0.00047397,120]
[337480626,1725689443805,-500.0,0.00047397,120]
[337480627,1725689443814,-886.924956,0.00047397,120]
[337480628,1725689443823,-500.0,0.00047397,120]
[337480629,1725689443832,-504.00953053,0.00047397,120]
[337480630,1725689443842,-506.41305698,0.00047397,120]
[337480631,1725689443851,-151.0,0.00047397,120]
[337480632,1725689443861,-500.0,0.00047397,120]
[337480633,1725689443870,-176.530151,0.00047397,120]
[337480634,1725689443880,-500.0,0.00047397,120]
[337480635,1725689443889,-176.530151,0.00047397,120]
[337480636,1725689443898,-500.0,0.00047397,120]
[337480637,1725689443907,-500.0,0.00047397,120]
[337480638,1725689443916,-500.0,0.00047397,120]
[337480639,1725689443925,-500.0,0.00047397,120]
[337480640,1725689443936,-500.0,0.00047397,120]
[337480641,1725689443948,-162.64042382,0.00047397,120]
[337480642,1725689443958,-500.0,0.00047397,120]
[337480643,1725689443968,-500.0,0.00047397,120]
[337480644,1725689443977,-660.72,0.00047397,120]
[337480645,1725689443986,-500.0,0.00047397,120]
[337480646,1725689443995,-500.0,0.00047397,120]
[337480647,1725689444005,-522.25,0.00047397,120]
[337480648,1725689444014,-2469.2195,0.00047397,90]
[337480649,1725689444023,-500.0,0.00047397,120]
[337480650,1725689444033,-861.6,0.00047397,120]
[337480651,1725689444043,-500.0,0.00047397,120]
[337480652,1725689444052,-500.0,0.00047397,120]
[337480653,1725689444062,-2469.2195,0.00047397,90]
[337480654,1725689444071,-500.0,0.00047397,120]
[337480655,1725689444166,-500.0,0.00047397,120]
[337480656,1725689444177,-500.0,0.00047397,120]
[337480657,1725689444188,-500.0,0.00047397,120]
[337480658,1725689444199,-500.0,0.00047397,120]
[337480659,1725689444209,-500.0,0.00047397,120]
[337480660,1725689444219,-500.0,0.00047397,120]
[337480661,1725689444230,-500.0,0.00047397,120]
[337480662,1725689444242,-862.193226,0.00047397,120]
[337480663,1725689444255,-500.0,0.00047397,120]
[337480664,1725689444264,-862.193226,0.00047397,120]
[337480665,1725689444273,-500.0,0.00047397,120]
[337480666,1725689444289,-500.0,0.00047397,120]
[337480667,1725689444298,-862.193226,0.00047397,120]
[337480668,1725689444308,-862.193226,0.00047397,120]
[337480669,1725689444319,-187.863572,0.00047397,120]
[337480670,1725689444328,-187.863572,0.00047397,120]
[337480671,1725689444339,-500.0,0.00047397,120]
[337480672,1725689444348,-500.0,0.00047397,120]
[337480673,1725689444359,-500.0,0.00047397,120]
[337480674,1725689444369,-187.863572,0.00047397,120]
[337480675,1725689444378,-516.2961022,0.00047397,120]
[337480676,1725689444388,-187.863572,0.00047397,120]
[337480677,1725689444397,-500.0,0.00047397,120]
[337480678,1725689444407,-1277.34,0.00047397,120]
[337480679,1725689444419,-2139.4,0.00047397,120]
[337480680,1725689444429,-500.0,0.00047397,120]
[337480681,1725689444439,-500.0,0.00047397,120]
[337480682,1725689444448,-454.94275,0.00047397,120]
[337480683,1725689444458,-454.94275,0.00047397,120]
[337480684,1725689444468,-500.0,0.00047397,120]
[337480685,1725689444478,-344.350709,0.00047397,120]
[337480686,1725689444488,-454.94275,0.00047397,120]
[337480687,1725689444498,-500.0,0.00047397,120]
[337480688,1725689444507,-344.350709,0.00047397,120]
[337480689,1725689444517,-500.0,0.00047397,120]
[337480690,1725689444529,-454.94275,0.00047397,120]
[337480691,1725689444539,-502.40501276,0.00047397,2]
[337480692,1725689444548,-2254.44,0.00047397,120]
[337480693,1725689444558,-500.0,0.00047397,120]
[337480694,1725689444568,-344.350709,0.00047397,120]
[337480695,1725689444577,-344.350709,0.00047397,120]
[337480696,1725689444588,-151.0,0.00047397,120]
[337480697,1725689444599,-151.0,0.00047397,120]
[337480698,1725689444610,-500.0,0.00047397,120]
[337480699,1725689444621,-500.0,0.00047397,120]
[337480700,1725689444631,-500.0,0.00047397,120]
[337480701,1725689444640,-500.0,0.00047397,120]
[337480702,1725689444651,-559.88,0.00047397,120]
[337480703,1725689444661,-500.0,0.00047397,120]
[337480704,1725689444670,-500.0,0.00047397,120]
[337480705,1725689444680,-500.0,0.00047397,120]
[337480706,1725689444691,-1181.34,0.00047397,120]
[337480707,1725689444702,-500.0,0.00047397,120]
[337480708,1725689444713,-500.0,0.00047397,120]
[337480709,1725689444722,-500.0,0.00047397,120]
[337480710,1725689444731,-730.56,0.00047397,120]
[337480711,1725689444741,-504.59036307,0.00047397,120]
[337480712,1725689444752,-423.39301594,0.00047397,120]
[337480713,1725689444762,-500.0,0.00047397,120]
[337480714,1725689444772,-500.0,0.00047397,120]
[337480715,1725689444782,-506.35834209,0.00047397,120]
[337480716,1725689444792,-500.0,0.00047397,120]
[337480717,1725689444802,-500.0,0.00047397,120]
[337480718,1725689444813,-500.0,0.00047397,120]
[337480719,1725689444824,-1731.59,0.00047397,120]
[337480720,1725689444834,-500.0,0.00047397,120]
[337480721,1725689444844,-1280.191956,0.00047397,120]
[337480722,1725689444854,-1280.191956,0.00047397,120]
[337480723,1725689444864,-965.53,0.00047397,120]
[337480724,1725689444874,-500.0,0.00047397,120]
[337480725,1725689444884,-519.5,0.00047397,120]
[337480726,1725689444894,-1280.191956,0.00047397,120]
[337480727,1725689444903,-613.32,0.00047397,120]
[337480728,1725689444912,-1280.191958,0.00047397,120]
[337480729,1725689444922,-151.0,0.00047397,120]
[337480730,1725689444932,-151.0,0.00047397,120]
[337480731,1725689444942,-500.0,0.00047397,120]
[337480732,1725689444951,-500.0,0.00047397,120]
[337480733,1725689444961,-1813.65,0.00047397,120]
[337480734,1725689444970,-500.0,0.00047397,120]
[337480735,1725689444980,-500.0,0.00047397,120]
[337480736,1725689444990,-735.07,0.00047397,120]
[337480737,1725689445000,-500.0,0.00047397,120]
[337480738,1725689445010,-500.0,0.00047397,120]
[337480739,1725689445020,-533.71,0.00047397,120]
[337480740,1725689445031,-500.0,0.00047397,120]
[337480741,1725689445040,-1024.74,0.00047397,120]
[337480742,1725689445050,-500.0,0.00047397,120]
[337480743,1725689445060,-217.702838,0.00047397,120]
[337480744,1725689445069,-217.702838,0.00047397,120]
[337480745,1725689445079,-500.0,0.00047397,120]
[337480746,1725689445089,-507.65865615,0.00047397,120]
[337480747,1725689445098,-217.702838,0.00047397,120]
[337480748,1725689445107,-217.702845,0.00047397,120]
[337480749,1725689445117,-500.0,0.00047397,120]
[337480750,1725689445126,-1052.63,0.00047397,120]
[337480751,1725689445136,-505.85462064,0.00047397,120]
[337480752,1725689445145,-500.0,0.00047397,120]
[337480753,1725689445154,-534.98,0.00047397,120]
[337480754,1725689445163,-190.0677305,0.00047421,10]
[337480755,1725689445173,-1000.0,0.00047421,7]
[337480756,1725689445182,-517.61995908,0.00047488,10]
[337480757,1725689445191,-584.3418404,0.00047623,2]
[337480758,1725689445200,-410.1493314,0.00047666,2]
[337480759,1725689445210,-410.1493314,0.00047666,2]
[337480760,1725689445219,-999.0,0.0004767,120]
[337480761,1725689445228,-500.0,0.00047671,120]
[337480762,1725689445237,-500.0,0.00047671,120]
[337480763,1725689445247,-431.94934583,0.00047671,120]
[337480764,1725689445256,-499.99683721,0.00047671,120]
[337480765,1725689445265,-508.92198265,0.00047671,120]
[337480766,1725689445274,-338.96335418,0.00047671,120]
[337480767,1725689445283,-500.0,0.00047671,120]
[337480768,1725689445293,-200.0,0.00047671,120]
[337480769,1725689445302,-500.0,0.00047671,120]
[337480770,1725689445311,-500.0,0.00047671,120]
[337480771,1725689445320,-646.38,0.00047671,120]
[337480772,1725689445330,-2500.01,0.00047671,120]
[337480773,1725689445339,-513.60373407,0.00047671,120]
[337480774,1725689445349,-500.0,0.00047671,120]
[337480775,1725689445358,-509.13151209,0.00047671,120]
[337480776,1725689445430,-500.0,0.00047671,120]
[337480777,1725689445439,-524.80894121,0.00047671,120]
[337480778,1725689445448,-500.0,0.00047671,120]
[337480779,1725689445458,-500.0,0.00047671,120]
[337480780,1725689445468,-500.0,0.00047671,120]
[337480781,1725689445477,-500.0,0.00047671,120]
[337480782,1725689445486,-500.0,0.00047671,120]
[337480783,1725689445497,-500.0,0.00047671,120]
[337480784,1725689445506,-500.0,0.00047671,120]
[337480785,1725689445516,-719.85,0.00047671,120]
[337480786,1725689445528,-500.0,0.00047671,120]
[337480787,1725689445538,-416.14058797,0.00047671,120]
[337480788,1725689445548,-500.0,0.00047671,120]
[337480789,1725689445558,-500.0,0.00047671,120]
[337480790,1725689445567,-586.75193941,0.00047671,120]
[337480791,1725689445577,-500.0,0.00047671,120]
[337480792,1725689445586,-500.0,0.00047671,120]
[337480793,1725689445596,-500.0,0.00047671,120]
[337480794,1725689445606,-500.0,0.00047671,120]
[337480795,1725689445615,-500.0,0.00047671,120]
[337480796,1725689445625,-500.0,0.00047671,120]
[337480797,1725689445634,-500.0,0.00047671,120]
[337480798,1725689445645,-151.0,0.00047671,30]
[337480799,1725689445654,-500.0,0.00047671,120]
[337480800,1725689445664,-500.0,0.00047671,120]
[337480801,1725689445673,-500.0,0.00047671,120]
[337480802,1725689445682,-505.84095082,0.00047671,120]
[337480803,1725689445692,-151.0,0.00047671,120]
[337480804,1725689445701,-506.85872551,0.00047671,120]
[337480805,1725689445711,-151.0,0.00047671,120]
[337480806,1725689445721,-254.22575531,0.00047671,120]
[337480807,1725689445730,-501.81084097,0.00047671,120]
[337480808,1725689445740,-500.0,0.00047671,120]
[337480809,1725689445749,-500.0,0.00047671,120]
[337480810,1725689445759,-500.0,0.00047671,120]
[337480811,1725689445770,-500.0,0.00047671,120]
[337480812,1725689445781,-151.0,0.00047671,120]
[337480813,1725689445792,-151.0,0.00047671,120]
[337480814,1725689445802,-151.0,0.00047671,120]
[337480815,1725689445811,-184.835885,0.00047671,120]
[337480816,1725689445821,-882.991904,0.00047671,120]
[337480817,1725689445830,-882.991904,0.00047671,120]
[337480818,1725689445840,-500.0,0.00047671,120]
[337480819,1725689445849,-811.795668,0.00047671,120]
[337480820,1725689445858,-811.795668,0.00047671,120]
[337480821,1725689445868,-500.0,0.00047671,120]
[337480822,1725689445877,-151.0,0.00047671,120]
[337480823,1725689445887,-624.855672,0.00047671,120]
[337480824,1725689445897,-151.0,0.00047671,120]
[337480825,1725689445906,-500.0,0.00047671,120]
[337480826,1725689445916,-624.855672,0.00047671,120]
[337480827,1725689445927,-500.0,0.00047671,120]
[337480828,1725689445936,-500.0,0.00047671,120]
[337480829,1725689445945,-388.124106,0.00047671,120]
[337480830,1725689445957,-500.0,0.00047671,120]
[337480831,1725689445966,-388.124106,0.00047671,120]
[337480833,1725689445975,-500.0,0.00047671,120]
[337480834,1725689445984,-1764.93,0.00047671,120]
[337480835,1725689445993,-500.0,0.00047671,120]
[337480836,1725689446003,-500.0,0.00047671,120]
[337480837,1725689446012,-500.0,0.00047671,120]
[337480838,1725689446021,-500.0,0.00047671,120]
[337480839,1725689446030,-500.0,0.00047671,120]
[337480840,1725689446040,-500.0,0.00047671,120]
[337480841,1725689446049,-500.0,0.00047671,21]
[337480842,1725689446058,-394.255895,0.00047671,120]
[337480843,1725689446067,-500.0,0.00047671,120]
[337480844,1725689446076,-500.0,0.00047671,120]
[337480845,1725689446085,-394.255895,0.00047671,120]
[337480846,1725689446094,-500.0,0.00047671,120]
[337480847,1725689446104,-500.0,0.00047671,120]
[337480848,1725689446113,-755.91,0.00047671,120]
[337480849,1725689446123,-500.0,0.00047671,120]
[337480850,1725689446133,-500.0,0.00047671,120]
[337480851,1725689446142,-500.0,0.00047671,120]
[337480852,1725689446152,-500.0,0.00047671,120]
[337480854,1725689446163,-500.0,0.00047671,120]
[337480855,1725689446172,-500.0,0.00047671,120]
[337480857,1725689446181,-4216.59,0.00047671,120]
[337480858,1725689446190,-500.0,0.00047671,120]
[337480860,1725689446199,-500.0,0.00047671,120]
[337480862,1725689446209,-500.0,0.00047671,120]
[337480864,1725689446218,-507.0034947,0.00047671,120]
[337480865,1725689446228,-517.89,0.00047671,120]
[337480867,1725689446238,-500.0,0.00047671,120]
[337480868,1725689446247,-500.0,0.00047671,120]
[337480869,1725689446257,-886.924956,0.00047671,120]
[337480871,1725689446267,-500.0,0.00047671,120]
[337480873,1725689446277,-500.0,0.00047671,120]
[337480875,1725689446288,-507.82958598,0.00047671,120]
[337480876,1725689446298,-886.924956,0.00047671,120]
[337480877,1725689446307,-151.0,0.00047671,120]
[337480878,1725689446316,-500.0,0.00047671,120]
[337480879,1725689446325,-176.530151,0.00047671,120]
[337480880,1725689446334,-500.0,0.00047671,120]
[337480881,1725689446343,-176.530151,0.00047671,120]
[337480882,1725689446353,-500.0,0.00047671,120]
[337480883,1725689446362,-572.93948992,0.00047671,120]
[337480885,1725689446372,-506.41009515,0.00047671,120]
[337480887,1725689446381,-500.0,0.00047671,120]
[337480889,1725689446390,-500.0,0.00047671,120]
[337480890,1725689446399,-500.0,0.00047671,120]
[337480892,1725689446409,-500.0,0.00047671,120]
[337480894,1725689446421,-500.0,0.00047671,120]
[337480896,1725689446431,-158.18120652,0.00047671,120]
[337480898,1725689446441,-522.25,0.00047671,120]
[337480900,1725689446451,-2469.2195,0.00047671,90]
[337480901,1725689446461,-500.0,0.00047671,120]
[337480902,1725689446470,-861.6,0.00047671,120]
[337480903,1725689446480,-500.0,0.00047671,120]
[337480904,1725689446491,-500.0,0.00047671,120]
[337480905,1725689446557,-2469.2195,0.00047671,90]
[337480906,1725689446569,-500.0,0.00047671,120]
[337480907,1725689446579,-506.30074958,0.00047671,120]
[337480908,1725689446589,-500.0,0.00047671,120]
[337480909,1725689446598,-500.0,0.00047671,120]
[337480910,1725689446608,-506.6371831,0.00047671,120]
[337480911,1725689446618,-500.0,0.00047671,120]
[337480912,1725689446627,-500.0,0.00047671,120]
[337480913,1725689446636,-500.0,0.00047671,120]
[337480914,1725689446646,-507.50787809,0.00047671,120]
[337480915,1725689446655,-862.193226,0.00047671,120]
[337480916,1725689446664,-500.0,0.00047671,120]
[337480917,1725689446673,-500.0,0.00047671,120]
[337480918,1725689446683,-862.193226,0.00047671,120]
[337480919,1725689446692,-187.863572,0.00047671,120]
[337480920,1725689446701,-511.35150735,0.00047671,120]
[337480921,1725689446711,-505.87376747,0.00047671,120]
[337480922,1725689446720,-500.0,0.00047671,120]
[337480923,1725689446729,-187.863572,0.00047671,120]
[337480924,1725689446739,-508.77626107,0.00047671,120]
[337480925,1725689446748,-1277.34,0.00047671,120]
[337480926,1725689446758,-2139.4,0.00047671,120]
[337480927,1725689446767,-500.0,0.00047671,120]
[337480928,1725689446777,-500.0,0.00047671,120]
[337480929,1725689446787,-454.94275,0.00047671,120]
[337480930,1725689446796,-500.0,0.00047671,120]
[337480931,1725689446806,-500.0,0.00047671,120]
[337480932,1725689446815,-500.0,0.00047671,120]
[337480933,1725689446824,-344.350709,0.00047671,120]
[337480934,1725689446834,-454.94275,0.00047671,120]
[337480935,1725689446843,-2254.44,0.00047671,120]
[337480936,1725689446852,-500.0,0.00047671,120]
[337480937,1725689446865,-344.350709,0.00047671,120]
[337480938,1725689446875,-151.0,0.00047671,120]
[337480939,1725689446886,-500.0,0.00047671,120]
[337480940,1725689446898,-500.0,0.00047671,120]
[337480941,1725689446909,-516.85204332,0.00047671,120]
[337480942,1725689446920,-559.88,0.00047671,120]
[337480943,1725689446930,-523.89430077,0.00047671,120]
[337480944,1725689446940,-500.0,0.00047671,120]
[337480945,1725689446951,-500.0,0.00047671,120]
[337480946,1725689446962,-1181.34,0.00047671,120]
[337480947,1725689446971,-506.88250535,0.00047671,120]
[337480948,1725689446980,-500.0,0.00047671,120]
[337480949,1725689446989,-505.97489785,0.00047671,120]
[337480950,1725689446997,-730.56,0.00047671,120]
[337480951,1725689447007,-507.81488035,0.00047671,120]
[337480952,1725689447017,-198.0,0.00047671,120]
[337480953,1725689447026,-236.44,0.00047671,120]
[337480954,1725689447036,-500.0,0.00047671,120]
[337480955,1725689447045,-500.0,0.00047671,120]
[337480956,1725689447055,-1731.59,0.00047671,120]
[337480957,1725689447064,-500.0,0.00047671,120]
[337480958,1725689447073,-965.53,0.00047671,120]
[337480959,1725689447082,-500.0,0.00047671,120]
[337480960,1725689447092,-613.32,0.00047671,120]
[337480961,1725689447101,-504.9983256,0.00047671,120]
[337480962,1725689447110,-1813.65,0.00047671,120]
[337480963,1725689447120,-500.0,0.00047671,120]
[337480964,1725689447130,-505.83783957,0.00047671,120]
[337480965,1725689447139,-735.07,0.00047671,120]
[337480966,1725689447149,-500.0,0.00047671,120]
[337480967,1725689447158,-500.0,0.00047671,120]
[337480968,1725689447168,-533.71,0.00047671,120]
[337480969,1725689447178,-500.0,0.00047671,120]
[337480970,1725689447187,-1024.74,0.00047671,120]
[337480971,1725689447197,-500.0,0.00047671,120]
[337480972,1725689447206,-500.0,0.00047671,120]
[337480973,1725689447215,-500.0,0.00047671,120]
[337480974,1725689447224,-1052.63,0.00047671,120]
[337480975,1725689447233,-500.0,0.00047671,120]
[337480976,1725689447243,-151.0,0.00047935,120]
[337480977,1725689447252,-176.530151,0.00047935,120]
[337480978,1725689447261,-176.530151,0.00047935,120]
[337480979,1725689447270,-2469.2195,0.00047935,90]
[337480980,1725689447280,-2469.2195,0.00047935,90]
[337480981,1725689447292,-500.0,0.00047945,120]
[337480982,1725689447302,-500.0,0.00047945,120]
[337480983,1725689447312,-615.03663209,0.00047945,120]
[337480984,1725689447321,-200.0,0.00047945,120]
[337480985,1725689447331,-500.0,0.00047945,120]
[337480986,1725689447341,-235.71808464,0.00047945,120]
[337480987,1725689447353,-646.38,0.00047945,120]
[337480988,1725689447363,-2500.01,0.00047945,120]
[337480989,1725689447372,-629.0503208,0.00047945,120]
[337480990,1725689447381,-500.0,0.00047945,120]
[337480991,1725689447391,-500.0,0.00047945,120]
[337480992,1725689447402,-500.0,0.00047945,120]
[337480993,1725689447417,-505.17203658,0.00047945,120]
[337480994,1725689447426,-500.0,0.00047945,120]
[337480995,1725689447436,-510.02249865,0.00047945,120]
[337480996,1725689447446,-509.96752493,0.00047945,120]
[337480997,1725689447456,-500.0,0.00047945,120]
[337480998,1725689447466,-719.85,0.00047945,120]
[337480999,1725689447476,-500.0,0.00047945,120]
[337481000,1725689447485,-240.157004,0.00047945,120]
[337481001,1725689447496,-240.157004,0.00047945,120]
[337481002,1725689447505,-500.0,0.00047945,120]
[337481003,1725689447516,-504.69787098,0.00047945,120]
[337481004,1725689447525,-152.944526,0.00047945,120]
[337481005,1725689447537,-500.0,0.00047945,120]
[337481006,1725689447554,-500.0,0.00047945,120]
[337481007,1725689447564,-500.0,0.00047945,120]
[337481008,1725689447628,-500.0,0.00047945,120]
[337481009,1725689447638,-151.0,0.00047945,7]
[337481010,1725689447647,-500.0,0.00047945,120]
[337481011,1725689447656,-500.0,0.00047945,120]
[337481012,1725689447667,-539.695848,0.00047945,120]
[337481013,1725689447676,-539.695848,0.00047945,120]
[337481014,1725689447686,-500.0,0.00047945,120]
[337481015,1725689447696,-151.0,0.00047945,30]
[337481016,1725689447706,-500.0,0.00047945,120]
[337481017,1725689447716,-500.0,0.00047945,120]
[337481018,1725689447726,-436.58805953,0.00047945,120]
[337481019,1725689447736,-151.0,0.00047945,120]
[337481020,1725689447746,-151.0,0.00047945,120]
[337481021,1725689447755,-202.25706,0.00047945,120]
[337481022,1725689447765,-202.25706,0.00047945,120]
[337481023,1725689447774,-500.0,0.00047945,120]
[337481024,1725689447784,-500.0,0.00047945,120]
[337481025,1725689447793,-507.32731577,0.00047945,120]
[337481026,1725689447803,-500.0,0.00047945,120]
[337481027,1725689447813,-151.0,0.00047945,120]
[337481028,1725689447822,-151.0,0.00047945,120]
[337481029,1725689447832,-151.0,0.00047945,120]
[337481030,1725689447841,-882.991904,0.00047945,120]
[337481031,1725689447851,-500.0,0.00047945,120]
[337481032,1725689447861,-882.991904,0.00047945,120]
[337481033,1725689447870,-811.795668,0.00047945,120]
[337481034,1725689447879,-811.795668,0.00047945,120]
[337481035,1725689447888,-500.0,0.00047945,120]
[337481036,1725689447898,-151.0,0.00047945,120]
[337481037,1725689447908,-624.855672,0.00047945,120]
[337481038,1725689447918,-180.28104,0.00047945,120]
[337481039,1725689447927,-500.0,0.00047945,120]
[337481040,1725689447937,-624.855672,0.00047945,120]
[337481041,1725689447947,-500.0,0.00047945,120]
[337481042,1725689447956,-507.84692766,0.00047945,120]
[337481043,1725689447967,-388.124106,0.00047945,120]
[337481044,1725689447976,-556.15789182,0.00047945,120]
[337481045,1725689447986,-388.124106,0.00047945,120]
[337481046,1725689447996,-500.0,0.00047945,120]
[337481047,1725689448006,-1764.93,0.00047945,120]
[337481048,1725689448016,-506.26111317,0.00047945,120]
[337481049,1725689448026,-316.38198528,0.00047945,120]
[337481050,1725689448038,-390.81670782,0.00047945,120]
[337481051,1725689448048,-510.62694228,0.00047945,120]
[337481052,1725689448057,-500.0,0.00047945,120]
[337481053,1725689448067,-507.24902116,0.00047945,120]
[337481054,1725689448077,-500.0,0.00047945,21]
[337481055,1725689448087,-394.255895,0.00047945,120]
[337481056,1725689448097,-500.0,0.00047945,120]
[337481057,1725689448107,-500.0,0.00047945,120]
[337481058,1725689448117,-394.255895,0.00047945,120]
[337481059,1725689448126,-500.0,0.00047945,120]
[337481060,1725689448136,-500.0,0.00047945,120]
[337481061,1725689448146,-755.91,0.00047945,120]
[337481062,1725689448155,-500.0,0.00047945,120]
[337481063,1725689448166,-500.0,0.00047945,120]
[337481064,1725689448175,-500.0,0.00047945,120]
[337481065,1725689448184,-640.14441069,0.00047945,120]
[337481066,1725689448194,-500.0,0.00047945,120]
[337481067,1725689448206,-508.64687277,0.00047945,120]
[337481068,1725689448216,-4216.59,0.00047945,120]
[337481069,1725689448226,-273.00933044,0.00047945,120]
[337481070,1725689448235,-515.63356778,0.00047945,120]
[337481071,1725689448245,-500.0,0.00047945,120]
[337481072,1725689448255,-517.89,0.00047945,120]
[337481073,1725689448265,-500.0,0.00047945,120]
[337481074,1725689448275,-506.06449158,0.00047945,120]
[337481075,1725689448285,-886.924956,0.00047945,120]
[337481076,1725689448295,-504.90952318,0.00047945,120]
[337481077,1725689448305,-508.06261164,0.00047945,120]
[337481078,1725689448314,-886.924956,0.00047945,120]
[337481079,1725689448324,-151.0,0.00047945,120]
[337481080,1725689448333,-500.0,0.00047945,120]
[337481081,1725689448342,-176.530151,0.00047945,120]